{"text_format":"1","workbook":"xlsx","n_sheets":7,"sheets":["5 класс","6 класс","7 класс","8 класс","9 класс","10 класс","11 класс"],"not_rendered":{"charts":0,"images":0,"macros":0,"external_links":0,"defined_names":17,"comments":0,"pivot_tables":0},"unopened":[],"bounds":{"document_bytes":16777216,"sheet_cells":100000,"rows_first":2000,"rows_last":500,"rows_between":2000,"halvings":0,"cell_chars":16384,"cell_head_chars":4096},"cells_cut":0,"cells_raw":0,"read":"whole","date_system":"1900"}

{"sheet":"5 класс","index":0,"n_rows":186,"n_cols":11,"rows_kept":186,"cut":false,"hidden":false,"merged":[[0,1,0,3],[0,4,0,9]]}
[null,"Итоговый протокол школьного этапа ВСОШ по ",null,null,"биологии",null,null,null,null,null,"в 2024-2025 уч. году"]
[]
[null,null,null,null,null,null,null,"макс балл",26]
["№ п/п","Муниципалитет/ ГОУ/ЧОУ","ФИО (полностью)","шифр","класс обучается","класс выступает","№ ОО","Кол-во набранных баллов","% выполнения работы","Статус","ФИО учителя (наставника)"]
[1,"Сормовский","Гуляшов Егор Евгеньевич","sbi24520/edu520802/5/4qgw6",5,5,80,22.2,{"$f":"H5*100/макс5","v":85.384615384615387},"победитель","Ломака Александра Евгеньевна"]
[2,"Сормовский","Романов Артем Романович","sbi24520/edu520802/5/4w22r",5,5,80,18.2,70,"призер","Ломака Александра Евгеньевна"]
[3,"Сормовский","Зиновьев Дмитрий","sbi24520/edu520802/5/4zvv8",5,5,80,17,65.384615384615387,"призер","Ломака Александра Евгеньевна"]
[4,"Сормовский","Чернышова София Александровна","sbi24520/edu520802/5/38777",5,5,80,16.2,62.307692307692307,"призер","Ломака Александра Евгеньевна"]
[5,"Сормовский","Лысов Федор Михайлович","sbi24520/edu520802/5/3g22q",5,5,80,14.8,56.92307692307692,"призер","Ломака Александра Евгеньевна"]
[6,"Сормовский","Дегтярев Семен Сергеевич","sbi24520/edu520802/5/37ggr",5,5,80,13.4,51.53846153846154,"призер","Ломака Александра Евгеньевна"]
[7,"Сормовский","Улитин Арсений Алексеевич","sbi24520/edu520802/5/45gg2",5,5,80,10.199999999999999,39.230769230769226,null,"Ломака Александра Евгеньевна"]
[8,"Сормовский","Ушакова Таисия Александровна","sbi24520/edu520802/5/4q663",5,5,80,9.8000000000000007,37.692307692307693,null,"Ломака Александра Евгеньевна"]
[9,"Сормовский",null,null,5,null,null,null,0]
[10,"Сормовский",null,null,5,null,null,null,0]
[11,"Сормовский",null,null,5,null,null,null,0]
[12,"Сормовский",null,null,5,null,null,null,0]
[13,"Сормовский",null,null,5,null,null,null,0]
[14,"Сормовский",null,null,5,null,null,null,0]
[15,"Сормовский",null,null,5,null,null,null,0]
[16,"Сормовский",null,null,5,null,null,null,0]
[17,"Сормовский",null,null,5,null,null,null,0]
[18,"Сормовский",null,null,5,null,null,null,0]
[19,"Сормовский",null,null,5,null,null,null,0]
[20,"Сормовский",null,null,5,null,null,null,0]
[21,"Сормовский",null,null,5,null,null,null,0]
[22,"Сормовский",null,null,5,null,null,null,0]
[23,"Сормовский",null,null,5,null,null,null,0]
[24,"Сормовский",null,null,5,null,null,null,0]
[25,"Сормовский",null,null,5,null,null,null,0]
[26,"Сормовский",null,null,5,null,null,null,0]
[27,"Сормовский",null,null,5,null,null,null,0]
[28,"Сормовский",null,null,5,null,null,null,0]
[29,"Сормовский",null,null,5,null,null,null,0]
[30,"Сормовский",null,null,5,null,null,null,0]
[31,"Сормовский",null,null,5,null,null,null,0]
[32,"Сормовский",null,null,5,null,null,null,0]
[33,"Сормовский",null,null,5,null,null,null,{"$f":"H37*100/макс5","v":0}]
[34,"Сормовский",null,null,5,null,null,null,0]
[35,"Сормовский",null,null,5,null,null,null,0]
[36,"Сормовский",null,null,5,null,null,null,0]
[37,"Сормовский",null,null,5,null,null,null,0]
[38,"Сормовский",null,null,5,null,null,null,0]
[39,"Сормовский",null,null,5,null,null,null,0]
[40,"Сормовский",null,null,5,null,null,null,0]
[41,"Сормовский",null,null,5,null,null,null,0]
[42,"Сормовский",null,null,5,null,null,null,0]
[43,"Сормовский",null,null,5,null,null,null,0]
[44,"Сормовский",null,null,5,null,null,null,0]
[45,"Сормовский",null,null,5,null,null,null,0]
[46,"Сормовский",null,null,5,null,null,null,0]
[47,"Сормовский",null,null,5,null,null,null,0]
[48,"Сормовский",null,null,5,null,null,null,0]
[49,"Сормовский",null,null,5,null,null,null,0]
[50,"Сормовский",null,null,5,null,null,null,0]
[51,"Сормовский",null,null,5,null,null,null,0]
[52,"Сормовский",null,null,5,null,null,null,0]
[53,"Сормовский",null,null,5,null,null,null,0]
[54,"Сормовский",null,null,5,null,null,null,0]
[55,"Сормовский",null,null,5,null,null,null,0]
[56,"Сормовский",null,null,5,null,null,null,0]
[57,"Сормовский",null,null,5,null,null,null,0]
[58,"Сормовский",null,null,5,null,null,null,0]
[59,"Сормовский",null,null,5,null,null,null,0]
[60,"Сормовский",null,null,5,null,null,null,0]
[61,"Сормовский",null,null,5,null,null,null,0]
[62,"Сормовский",null,null,5,null,null,null,0]
[63,"Сормовский",null,null,5,null,null,null,0]
[64,"Сормовский",null,null,5,null,null,null,0]
[65,"Сормовский",null,null,5,null,null,null,{"$f":"H69*100/макс5","v":0}]
[66,"Сормовский",null,null,5,null,null,null,0]
[67,"Сормовский",null,null,5,null,null,null,0]
[68,"Сормовский",null,null,5,null,null,null,0]
[69,"Сормовский",null,null,5,null,null,null,0]
[70,"Сормовский",null,null,5,null,null,null,0]
[71,"Сормовский",null,null,5,null,null,null,0]
[72,"Сормовский",null,null,5,null,null,null,0]
[73,"Сормовский",null,null,5,null,null,null,0]
[74,"Сормовский",null,null,5,null,null,null,0]
[75,"Сормовский",null,null,5,null,null,null,0]
[76,"Сормовский",null,null,5,null,null,null,0]
[77,"Сормовский",null,null,5,null,null,null,0]
[78,"Сормовский",null,null,5,null,null,null,0]
[79,"Сормовский",null,null,5,null,null,null,0]
[80,"Сормовский",null,null,5,null,null,null,0]
[81,"Сормовский",null,null,5,null,null,null,0]
[82,"Сормовский",null,null,5,null,null,null,0]
[83,"Сормовский",null,null,5,null,null,null,0]
[84,"Сормовский",null,null,5,null,null,null,0]
[85,"Сормовский",null,null,5,null,null,null,0]
[86,"Сормовский",null,null,5,null,null,null,0]
[87,"Сормовский",null,null,5,null,null,null,0]
[88,"Сормовский",null,null,5,null,null,null,0]
[89,"Сормовский",null,null,5,null,null,null,0]
[90,"Сормовский",null,null,5,null,null,null,0]
[91,"Сормовский",null,null,5,null,null,null,0]
[92,"Сормовский",null,null,5,null,null,null,0]
[93,"Сормовский",null,null,5,null,null,null,0]
[94,"Сормовский",null,null,5,null,null,null,0]
[95,"Сормовский",null,null,5,null,null,null,0]
[96,"Сормовский",null,null,5,null,null,null,0]
[97,"Сормовский",null,null,5,null,null,null,{"$f":"H101*100/макс5","v":0}]
[98,"Сормовский",null,null,5,null,null,null,0]
[99,"Сормовский",null,null,5,null,null,null,0]
[100,"Сормовский",null,null,5,null,null,null,0]
[101,"Сормовский",null,null,5,null,null,null,0]
[102,"Сормовский",null,null,5,null,null,null,0]
[103,"Сормовский",null,null,5,null,null,null,0]
[104,"Сормовский",null,null,5,null,null,null,0]
[105,"Сормовский",null,null,5,null,null,null,0]
[106,"Сормовский",null,null,5,null,null,null,0]
[107,"Сормовский",null,null,5,null,null,null,0]
[108,"Сормовский",null,null,5,null,null,null,0]
[109,"Сормовский",null,null,5,null,null,null,0]
[110,"Сормовский",null,null,5,null,null,null,0]
[111,"Сормовский",null,null,5,null,null,null,0]
[112,"Сормовский",null,null,5,null,null,null,0]
[113,"Сормовский",null,null,5,null,null,null,0]
[114,"Сормовский",null,null,5,null,null,null,0]
[115,"Сормовский",null,null,5,null,null,null,0]
[116,"Сормовский",null,null,5,null,null,null,0]
[117,"Сормовский",null,null,5,null,null,null,0]
[118,"Сормовский",null,null,5,null,null,null,0]
[119,"Сормовский",null,null,5,null,null,null,0]
[120,"Сормовский",null,null,5,null,null,null,0]
[121,"Сормовский",null,null,5,null,null,null,0]
[122,"Сормовский",null,null,5,null,null,null,0]
[123,"Сормовский",null,null,5,null,null,null,0]
[124,"Сормовский",null,null,5,null,null,null,0]
[125,"Сормовский",null,null,5,null,null,null,0]
[126,"Сормовский",null,null,5,null,null,null,0]
[127,"Сормовский",null,null,5,null,null,null,0]
[128,"Сормовский",null,null,5,null,null,null,0]
[129,"Сормовский",null,null,5,null,null,null,{"$f":"H133*100/макс5","v":0}]
[130,"Сормовский",null,null,5,null,null,null,0]
[131,"Сормовский",null,null,5,null,null,null,0]
[132,"Сормовский",null,null,5,null,null,null,0]
[133,"Сормовский",null,null,5,null,null,null,0]
[134,"Сормовский",null,null,5,null,null,null,0]
[135,"Сормовский",null,null,5,null,null,null,0]
[136,"Сормовский",null,null,5,null,null,null,0]
[137,"Сормовский",null,null,5,null,null,null,0]
[138,"Сормовский",null,null,5,null,null,null,0]
[139,"Сормовский",null,null,5,null,null,null,0]
[140,"Сормовский",null,null,5,null,null,null,0]
[141,"Сормовский",null,null,5,null,null,null,0]
[142,"Сормовский",null,null,5,null,null,null,0]
[143,"Сормовский",null,null,5,null,null,null,0]
[144,"Сормовский",null,null,5,null,null,null,0]
[145,"Сормовский",null,null,5,null,null,null,0]
[146,"Сормовский",null,null,5,null,null,null,0]
[147,"Сормовский",null,null,5,null,null,null,0]
[148,"Сормовский",null,null,5,null,null,null,0]
[149,"Сормовский",null,null,5,null,null,null,0]
[150,"Сормовский",null,null,5,null,null,null,0]
[151,"Сормовский",null,null,5,null,null,null,0]
[152,"Сормовский",null,null,5,null,null,null,0]
[153,"Сормовский",null,null,5,null,null,null,0]
[154,"Сормовский",null,null,5,null,null,null,0]
[155,"Сормовский",null,null,5,null,null,null,0]
[156,"Сормовский",null,null,5,null,null,null,0]
[157,"Сормовский",null,null,5,null,null,null,0]
[158,"Сормовский",null,null,5,null,null,null,0]
[159,"Сормовский",null,null,5,null,null,null,0]
[160,"Сормовский",null,null,5,null,null,null,0]
[161,"Сормовский",null,null,5,null,null,null,{"$f":"H165*100/макс5","v":0}]
[162,"Сормовский",null,null,5,null,null,null,0]
[163,"Сормовский",null,null,5,null,null,null,0]
[164,"Сормовский",null,null,5,null,null,null,0]
[165,"Сормовский",null,null,5,null,null,null,0]
[166,"Сормовский",null,null,5,null,null,null,0]
[167,"Сормовский",null,null,5,null,null,null,0]
[168,"Сормовский",null,null,5,null,null,null,0]
[169,"Сормовский",null,null,5,null,null,null,0]
[170,"Сормовский",null,null,5,null,null,null,0]
[171,"Сормовский",null,null,5,null,null,null,0]
[172,"Сормовский",null,null,5,null,null,null,0]
[173,"Сормовский",null,null,5,null,null,null,0]
[174,"Сормовский",null,null,5,null,null,null,0]
[175,"Сормовский",null,null,5,null,null,null,0]
[176,"Сормовский",null,null,5,null,null,null,0]
[177,"Сормовский",null,null,5,null,null,null,0]
[178,"Сормовский",null,null,5,null,null,null,0]
[179,"Сормовский",null,null,5,null,null,null,0]
[180,"Сормовский",null,null,5,null,null,null,0]
[181,"Сормовский",null,null,5,null,null,null,0]
[182,"Сормовский",null,null,5,null,null,null,0]

{"sheet":"6 класс","index":1,"n_rows":186,"n_cols":11,"rows_kept":186,"cut":false,"hidden":false,"merged":[[0,1,0,3],[0,4,0,9]]}
[null,"Итоговый протокол школьного этапа ВСОШ по ",null,null,"биологии",null,null,null,null,null,"в 2024-2025 уч. году"]
[]
[null,null,null,null,null,null,null,"макс балл",26]
["№ п/п","Муниципалитет/ ГОУ/ЧОУ","ФИО (полностью)","шифр","класс обучается","класс выступает","№ ОО","Кол-во набранных баллов","% выполнения работы","Статус","ФИО учителя (наставника)"]
[1,"Сормовский","Сейфетдинова Элина Валерьевна","sbi24620/edu520802/6/38v63",6,6,80,19.399999999999999,{"$f":"H5*100/макс6","v":74.615384615384613},"победитель","Ломака Александра Евгеньевна"]
[2,"Сормовский","Гафаров Руслан ренатович","sbi24620/edu520802/6/3rz53",6,6,80,15.6,60,"призер","Ломака Александра Евгеньевна"]
[3,"Сормовский","Кривова Екатерина Максимовна","sbi24620/edu520802/6/398g4",6,6,80,14.8,56.92307692307692,"призер","Ломака Александра Евгеньевна"]
[4,"Сормовский","Неговская Софья Алексеевна","sbi24620/edu520802/6/3g8v4",6,6,80,14.2,54.615384615384613,"призер","Ломака Александра Евгеньевна"]
[5,"Сормовский","Никонов Роман Игоревич","sbi24620/edu520802/6/3r554",6,6,80,12,46.153846153846153,null,"Ломака Александра Евгеньевна"]
[6,"Сормовский","Кушнарева Юлианна Игоревна","sbi24620/edu520802/6/4z864",6,6,80,10.8,41.53846153846154,null,"Ломака Александра Евгеньевна"]
[7,"Сормовский",null,null,6,null,null,null,0]
[8,"Сормовский",null,null,6,null,null,null,0]
[9,"Сормовский",null,null,6,null,null,null,0]
[10,"Сормовский",null,null,6,null,null,null,0]
[11,"Сормовский",null,null,6,null,null,null,0]
[12,"Сормовский",null,null,6,null,null,null,0]
[13,"Сормовский",null,null,6,null,null,null,0]
[14,"Сормовский",null,null,6,null,null,null,0]
[15,"Сормовский",null,null,6,null,null,null,0]
[16,"Сормовский",null,null,6,null,null,null,0]
[17,"Сормовский",null,null,6,null,null,null,0]
[18,"Сормовский",null,null,6,null,null,null,0]
[19,"Сормовский",null,null,6,null,null,null,0]
[20,"Сормовский",null,null,6,null,null,null,0]
[21,"Сормовский",null,null,6,null,null,null,0]
[22,"Сормовский",null,null,6,null,null,null,0]
[23,"Сормовский",null,null,6,null,null,null,0]
[24,"Сормовский",null,null,6,null,null,null,0]
[25,"Сормовский",null,null,6,null,null,null,0]
[26,"Сормовский",null,null,6,null,null,null,0]
[27,"Сормовский",null,null,6,null,null,null,0]
[28,"Сормовский",null,null,6,null,null,null,0]
[29,"Сормовский",null,null,6,null,null,null,0]
[30,"Сормовский",null,null,6,null,null,null,0]
[31,"Сормовский",null,null,6,null,null,null,0]
[32,"Сормовский",null,null,6,null,null,null,0]
[33,"Сормовский",null,null,6,null,null,null,{"$f":"H37*100/макс6","v":0}]
[34,"Сормовский",null,null,6,null,null,null,0]
[35,"Сормовский",null,null,6,null,null,null,0]
[36,"Сормовский",null,null,6,null,null,null,0]
[37,"Сормовский",null,null,6,null,null,null,0]
[38,"Сормовский",null,null,6,null,null,null,0]
[39,"Сормовский",null,null,6,null,null,null,0]
[40,"Сормовский",null,null,6,null,null,null,0]
[41,"Сормовский",null,null,6,null,null,null,0]
[42,"Сормовский",null,null,6,null,null,null,0]
[43,"Сормовский",null,null,6,null,null,null,0]
[44,"Сормовский",null,null,6,null,null,null,0]
[45,"Сормовский",null,null,6,null,null,null,0]
[46,"Сормовский",null,null,6,null,null,null,0]
[47,"Сормовский",null,null,6,null,null,null,0]
[48,"Сормовский",null,null,6,null,null,null,0]
[49,"Сормовский",null,null,6,null,null,null,0]
[50,"Сормовский",null,null,6,null,null,null,0]
[51,"Сормовский",null,null,6,null,null,null,0]
[52,"Сормовский",null,null,6,null,null,null,0]
[53,"Сормовский",null,null,6,null,null,null,0]
[54,"Сормовский",null,null,6,null,null,null,0]
[55,"Сормовский",null,null,6,null,null,null,0]
[56,"Сормовский",null,null,6,null,null,null,0]
[57,"Сормовский",null,null,6,null,null,null,0]
[58,"Сормовский",null,null,6,null,null,null,0]
[59,"Сормовский",null,null,6,null,null,null,0]
[60,"Сормовский",null,null,6,null,null,null,0]
[61,"Сормовский",null,null,6,null,null,null,0]
[62,"Сормовский",null,null,6,null,null,null,0]
[63,"Сормовский",null,null,6,null,null,null,0]
[64,"Сормовский",null,null,6,null,null,null,0]
[65,"Сормовский",null,null,6,null,null,null,{"$f":"H69*100/макс6","v":0}]
[66,"Сормовский",null,null,6,null,null,null,0]
[67,"Сормовский",null,null,6,null,null,null,0]
[68,"Сормовский",null,null,6,null,null,null,0]
[69,"Сормовский",null,null,6,null,null,null,0]
[70,"Сормовский",null,null,6,null,null,null,0]
[71,"Сормовский",null,null,6,null,null,null,0]
[72,"Сормовский",null,null,6,null,null,null,0]
[73,"Сормовский",null,null,6,null,null,null,0]
[74,"Сормовский",null,null,6,null,null,null,0]
[75,"Сормовский",null,null,6,null,null,null,0]
[76,"Сормовский",null,null,6,null,null,null,0]
[77,"Сормовский",null,null,6,null,null,null,0]
[78,"Сормовский",null,null,6,null,null,null,0]
[79,"Сормовский",null,null,6,null,null,null,0]
[80,"Сормовский",null,null,6,null,null,null,0]
[81,"Сормовский",null,null,6,null,null,null,0]
[82,"Сормовский",null,null,6,null,null,null,0]
[83,"Сормовский",null,null,6,null,null,null,0]
[84,"Сормовский",null,null,6,null,null,null,0]
[85,"Сормовский",null,null,6,null,null,null,0]
[86,"Сормовский",null,null,6,null,null,null,0]
[87,"Сормовский",null,null,6,null,null,null,0]
[88,"Сормовский",null,null,6,null,null,null,0]
[89,"Сормовский",null,null,6,null,null,null,0]
[90,"Сормовский",null,null,6,null,null,null,0]
[91,"Сормовский",null,null,6,null,null,null,0]
[92,"Сормовский",null,null,6,null,null,null,0]
[93,"Сормовский",null,null,6,null,null,null,0]
[94,"Сормовский",null,null,6,null,null,null,0]
[95,"Сормовский",null,null,6,null,null,null,0]
[96,"Сормовский",null,null,6,null,null,null,0]
[97,"Сормовский",null,null,6,null,null,null,{"$f":"H101*100/макс6","v":0}]
[98,"Сормовский",null,null,6,null,null,null,0]
[99,"Сормовский",null,null,6,null,null,null,0]
[100,"Сормовский",null,null,6,null,null,null,0]
[101,"Сормовский",null,null,6,null,null,null,0]
[102,"Сормовский",null,null,6,null,null,null,0]
[103,"Сормовский",null,null,6,null,null,null,0]
[104,"Сормовский",null,null,6,null,null,null,0]
[105,"Сормовский",null,null,6,null,null,null,0]
[106,"Сормовский",null,null,6,null,null,null,0]
[107,"Сормовский",null,null,6,null,null,null,0]
[108,"Сормовский",null,null,6,null,null,null,0]
[109,"Сормовский",null,null,6,null,null,null,0]
[110,"Сормовский",null,null,6,null,null,null,0]
[111,"Сормовский",null,null,6,null,null,null,0]
[112,"Сормовский",null,null,6,null,null,null,0]
[113,"Сормовский",null,null,6,null,null,null,0]
[114,"Сормовский",null,null,6,null,null,null,0]
[115,"Сормовский",null,null,6,null,null,null,0]
[116,"Сормовский",null,null,6,null,null,null,0]
[117,"Сормовский",null,null,6,null,null,null,0]
[118,"Сормовский",null,null,6,null,null,null,0]
[119,"Сормовский",null,null,6,null,null,null,0]
[120,"Сормовский",null,null,6,null,null,null,0]
[121,"Сормовский",null,null,6,null,null,null,0]
[122,"Сормовский",null,null,6,null,null,null,0]
[123,"Сормовский",null,null,6,null,null,null,0]
[124,"Сормовский",null,null,6,null,null,null,0]
[125,"Сормовский",null,null,6,null,null,null,0]
[126,"Сормовский",null,null,6,null,null,null,0]
[127,"Сормовский",null,null,6,null,null,null,0]
[128,"Сормовский",null,null,6,null,null,null,0]
[129,"Сормовский",null,null,6,null,null,null,{"$f":"H133*100/макс6","v":0}]
[130,"Сормовский",null,null,6,null,null,null,0]
[131,"Сормовский",null,null,6,null,null,null,0]
[132,"Сормовский",null,null,6,null,null,null,0]
[133,"Сормовский",null,null,6,null,null,null,0]
[134,"Сормовский",null,null,6,null,null,null,0]
[135,"Сормовский",null,null,6,null,null,null,0]
[136,"Сормовский",null,null,6,null,null,null,0]
[137,"Сормовский",null,null,6,null,null,null,0]
[138,"Сормовский",null,null,6,null,null,null,0]
[139,"Сормовский",null,null,6,null,null,null,0]
[140,"Сормовский",null,null,6,null,null,null,0]
[141,"Сормовский",null,null,6,null,null,null,0]
[142,"Сормовский",null,null,6,null,null,null,0]
[143,"Сормовский",null,null,6,null,null,null,0]
[144,"Сормовский",null,null,6,null,null,null,0]
[145,"Сормовский",null,null,6,null,null,null,0]
[146,"Сормовский",null,null,6,null,null,null,0]
[147,"Сормовский",null,null,6,null,null,null,0]
[148,"Сормовский",null,null,6,null,null,null,0]
[149,"Сормовский",null,null,6,null,null,null,0]
[150,"Сормовский",null,null,6,null,null,null,0]
[151,"Сормовский",null,null,6,null,null,null,0]
[152,"Сормовский",null,null,6,null,null,null,0]
[153,"Сормовский",null,null,6,null,null,null,0]
[154,"Сормовский",null,null,6,null,null,null,0]
[155,"Сормовский",null,null,6,null,null,null,0]
[156,"Сормовский",null,null,6,null,null,null,0]
[157,"Сормовский",null,null,6,null,null,null,0]
[158,"Сормовский",null,null,6,null,null,null,0]
[159,"Сормовский",null,null,6,null,null,null,0]
[160,"Сормовский",null,null,6,null,null,null,0]
[161,"Сормовский",null,null,6,null,null,null,{"$f":"H165*100/макс6","v":0}]
[162,"Сормовский",null,null,6,null,null,null,0]
[163,"Сормовский",null,null,6,null,null,null,0]
[164,"Сормовский",null,null,6,null,null,null,0]
[165,"Сормовский",null,null,6,null,null,null,0]
[166,"Сормовский",null,null,6,null,null,null,0]
[167,"Сормовский",null,null,6,null,null,null,0]
[168,"Сормовский",null,null,6,null,null,null,0]
[169,"Сормовский",null,null,6,null,null,null,0]
[170,"Сормовский",null,null,6,null,null,null,0]
[171,"Сормовский",null,null,6,null,null,null,0]
[172,"Сормовский",null,null,6,null,null,null,0]
[173,"Сормовский",null,null,6,null,null,null,0]
[174,"Сормовский",null,null,6,null,null,null,0]
[175,"Сормовский",null,null,6,null,null,null,0]
[176,"Сормовский",null,null,6,null,null,null,0]
[177,"Сормовский",null,null,6,null,null,null,0]
[178,"Сормовский",null,null,6,null,null,null,0]
[179,"Сормовский",null,null,6,null,null,null,0]
[180,"Сормовский",null,null,6,null,null,null,0]
[181,"Сормовский",null,null,6,null,null,null,0]
[182,"Сормовский",null,null,6,null,null,null,0]

{"sheet":"7 класс","index":2,"n_rows":186,"n_cols":11,"rows_kept":186,"cut":false,"hidden":false,"merged":[[0,1,0,3],[0,4,0,9]]}
[null,"Итоговый протокол школьного этапа ВСОШ по ",null,null,"биологии",null,null,null,null,null,"в 2024-2025 уч. году"]
[]
[null,null,null,null,null,null,null,"макс балл",30]
["№ п/п","Муниципалитет/ ГОУ/ЧОУ","ФИО (полностью)","шифр","класс обучается","класс выступает","№ ОО","Кол-во набранных баллов","% выполнения работы","Статус","ФИО учителя (наставника)"]
[1,"Сормовский","Кириллова Екатерина Сергеевна","sbi24720/edu520802/7/45g52",7,7,80,21.6,{"$f":"H5*100/макс7","v":72},"победитель","Ломака Александра Евгеньевна "]
[2,"Сормовский","Филиппова Анастасия Сергеевна","sbi24720/edu520802/7/37g5r",7,7,80,20.6,68.666666666666671,"призер","Ломака Александра Евгеньевна "]
[3,"Сормовский",null,null,7,null,null,null,0]
[4,"Сормовский",null,null,7,null,null,null,0]
[5,"Сормовский",null,null,7,null,null,null,0]
[6,"Сормовский",null,null,7,null,null,null,0]
[7,"Сормовский",null,null,7,null,null,null,0]
[8,"Сормовский",null,null,7,null,null,null,0]
[9,"Сормовский",null,null,7,null,null,null,0]
[10,"Сормовский",null,null,7,null,null,null,0]
[11,"Сормовский",null,null,7,null,null,null,0]
[12,"Сормовский",null,null,7,null,null,null,0]
[13,"Сормовский",null,null,7,null,null,null,0]
[14,"Сормовский",null,null,7,null,null,null,0]
[15,"Сормовский",null,null,7,null,null,null,0]
[16,"Сормовский",null,null,7,null,null,null,0]
[17,"Сормовский",null,null,7,null,null,null,0]
[18,"Сормовский",null,null,7,null,null,null,0]
[19,"Сормовский",null,null,7,null,null,null,0]
[20,"Сормовский",null,null,7,null,null,null,0]
[21,"Сормовский",null,null,7,null,null,null,0]
[22,"Сормовский",null,null,7,null,null,null,0]
[23,"Сормовский",null,null,7,null,null,null,0]
[24,"Сормовский",null,null,7,null,null,null,0]
[25,"Сормовский",null,null,7,null,null,null,0]
[26,"Сормовский",null,null,7,null,null,null,0]
[27,"Сормовский",null,null,7,null,null,null,0]
[28,"Сормовский",null,null,7,null,null,null,0]
[29,"Сормовский",null,null,7,null,null,null,0]
[30,"Сормовский",null,null,7,null,null,null,0]
[31,"Сормовский",null,null,7,null,null,null,0]
[32,"Сормовский",null,null,7,null,null,null,0]
[33,"Сормовский",null,null,7,null,null,null,{"$f":"H37*100/макс7","v":0}]
[34,"Сормовский",null,null,7,null,null,null,0]
[35,"Сормовский",null,null,7,null,null,null,0]
[36,"Сормовский",null,null,7,null,null,null,0]
[37,"Сормовский",null,null,7,null,null,null,0]
[38,"Сормовский",null,null,7,null,null,null,0]
[39,"Сормовский",null,null,7,null,null,null,0]
[40,"Сормовский",null,null,7,null,null,null,0]
[41,"Сормовский",null,null,7,null,null,null,0]
[42,"Сормовский",null,null,7,null,null,null,0]
[43,"Сормовский",null,null,7,null,null,null,0]
[44,"Сормовский",null,null,7,null,null,null,0]
[45,"Сормовский",null,null,7,null,null,null,0]
[46,"Сормовский",null,null,7,null,null,null,0]
[47,"Сормовский",null,null,7,null,null,null,0]
[48,"Сормовский",null,null,7,null,null,null,0]
[49,"Сормовский",null,null,7,null,null,null,0]
[50,"Сормовский",null,null,7,null,null,null,0]
[51,"Сормовский",null,null,7,null,null,null,0]
[52,"Сормовский",null,null,7,null,null,null,0]
[53,"Сормовский",null,null,7,null,null,null,0]
[54,"Сормовский",null,null,7,null,null,null,0]
[55,"Сормовский",null,null,7,null,null,null,0]
[56,"Сормовский",null,null,7,null,null,null,0]
[57,"Сормовский",null,null,7,null,null,null,0]
[58,"Сормовский",null,null,7,null,null,null,0]
[59,"Сормовский",null,null,7,null,null,null,0]
[60,"Сормовский",null,null,7,null,null,null,0]
[61,"Сормовский",null,null,7,null,null,null,0]
[62,"Сормовский",null,null,7,null,null,null,0]
[63,"Сормовский",null,null,7,null,null,null,0]
[64,"Сормовский",null,null,7,null,null,null,0]
[65,"Сормовский",null,null,7,null,null,null,{"$f":"H69*100/макс7","v":0}]
[66,"Сормовский",null,null,7,null,null,null,0]
[67,"Сормовский",null,null,7,null,null,null,0]
[68,"Сормовский",null,null,7,null,null,null,0]
[69,"Сормовский",null,null,7,null,null,null,0]
[70,"Сормовский",null,null,7,null,null,null,0]
[71,"Сормовский",null,null,7,null,null,null,0]
[72,"Сормовский",null,null,7,null,null,null,0]
[73,"Сормовский",null,null,7,null,null,null,0]
[74,"Сормовский",null,null,7,null,null,null,0]
[75,"Сормовский",null,null,7,null,null,null,0]
[76,"Сормовский",null,null,7,null,null,null,0]
[77,"Сормовский",null,null,7,null,null,null,0]
[78,"Сормовский",null,null,7,null,null,null,0]
[79,"Сормовский",null,null,7,null,null,null,0]
[80,"Сормовский",null,null,7,null,null,null,0]
[81,"Сормовский",null,null,7,null,null,null,0]
[82,"Сормовский",null,null,7,null,null,null,0]
[83,"Сормовский",null,null,7,null,null,null,0]
[84,"Сормовский",null,null,7,null,null,null,0]
[85,"Сормовский",null,null,7,null,null,null,0]
[86,"Сормовский",null,null,7,null,null,null,0]
[87,"Сормовский",null,null,7,null,null,null,0]
[88,"Сормовский",null,null,7,null,null,null,0]
[89,"Сормовский",null,null,7,null,null,null,0]
[90,"Сормовский",null,null,7,null,null,null,0]
[91,"Сормовский",null,null,7,null,null,null,0]
[92,"Сормовский",null,null,7,null,null,null,0]
[93,"Сормовский",null,null,7,null,null,null,0]
[94,"Сормовский",null,null,7,null,null,null,0]
[95,"Сормовский",null,null,7,null,null,null,0]
[96,"Сормовский",null,null,7,null,null,null,0]
[97,"Сормовский",null,null,7,null,null,null,{"$f":"H101*100/макс7","v":0}]
[98,"Сормовский",null,null,7,null,null,null,0]
[99,"Сормовский",null,null,7,null,null,null,0]
[100,"Сормовский",null,null,7,null,null,null,0]
[101,"Сормовский",null,null,7,null,null,null,0]
[102,"Сормовский",null,null,7,null,null,null,0]
[103,"Сормовский",null,null,7,null,null,null,0]
[104,"Сормовский",null,null,7,null,null,null,0]
[105,"Сормовский",null,null,7,null,null,null,0]
[106,"Сормовский",null,null,7,null,null,null,0]
[107,"Сормовский",null,null,7,null,null,null,0]
[108,"Сормовский",null,null,7,null,null,null,0]
[109,"Сормовский",null,null,7,null,null,null,0]
[110,"Сормовский",null,null,7,null,null,null,0]
[111,"Сормовский",null,null,7,null,null,null,0]
[112,"Сормовский",null,null,7,null,null,null,0]
[113,"Сормовский",null,null,7,null,null,null,0]
[114,"Сормовский",null,null,7,null,null,null,0]
[115,"Сормовский",null,null,7,null,null,null,0]
[116,"Сормовский",null,null,7,null,null,null,0]
[117,"Сормовский",null,null,7,null,null,null,0]
[118,"Сормовский",null,null,7,null,null,null,0]
[119,"Сормовский",null,null,7,null,null,null,0]
[120,"Сормовский",null,null,7,null,null,null,0]
[121,"Сормовский",null,null,7,null,null,null,0]
[122,"Сормовский",null,null,7,null,null,null,0]
[123,"Сормовский",null,null,7,null,null,null,0]
[124,"Сормовский",null,null,7,null,null,null,0]
[125,"Сормовский",null,null,7,null,null,null,0]
[126,"Сормовский",null,null,7,null,null,null,0]
[127,"Сормовский",null,null,7,null,null,null,0]
[128,"Сормовский",null,null,7,null,null,null,0]
[129,"Сормовский",null,null,7,null,null,null,{"$f":"H133*100/макс7","v":0}]
[130,"Сормовский",null,null,7,null,null,null,0]
[131,"Сормовский",null,null,7,null,null,null,0]
[132,"Сормовский",null,null,7,null,null,null,0]
[133,"Сормовский",null,null,7,null,null,null,0]
[134,"Сормовский",null,null,7,null,null,null,0]
[135,"Сормовский",null,null,7,null,null,null,0]
[136,"Сормовский",null,null,7,null,null,null,0]
[137,"Сормовский",null,null,7,null,null,null,0]
[138,"Сормовский",null,null,7,null,null,null,0]
[139,"Сормовский",null,null,7,null,null,null,0]
[140,"Сормовский",null,null,7,null,null,null,0]
[141,"Сормовский",null,null,7,null,null,null,0]
[142,"Сормовский",null,null,7,null,null,null,0]
[143,"Сормовский",null,null,7,null,null,null,0]
[144,"Сормовский",null,null,7,null,null,null,0]
[145,"Сормовский",null,null,7,null,null,null,0]
[146,"Сормовский",null,null,7,null,null,null,0]
[147,"Сормовский",null,null,7,null,null,null,0]
[148,"Сормовский",null,null,7,null,null,null,0]
[149,"Сормовский",null,null,7,null,null,null,0]
[150,"Сормовский",null,null,7,null,null,null,0]
[151,"Сормовский",null,null,7,null,null,null,0]
[152,"Сормовский",null,null,7,null,null,null,0]
[153,"Сормовский",null,null,7,null,null,null,0]
[154,"Сормовский",null,null,7,null,null,null,0]
[155,"Сормовский",null,null,7,null,null,null,0]
[156,"Сормовский",null,null,7,null,null,null,0]
[157,"Сормовский",null,null,7,null,null,null,0]
[158,"Сормовский",null,null,7,null,null,null,0]
[159,"Сормовский",null,null,7,null,null,null,0]
[160,"Сормовский",null,null,7,null,null,null,0]
[161,"Сормовский",null,null,7,null,null,null,{"$f":"H165*100/макс7","v":0}]
[162,"Сормовский",null,null,7,null,null,null,0]
[163,"Сормовский",null,null,7,null,null,null,0]
[164,"Сормовский",null,null,7,null,null,null,0]
[165,"Сормовский",null,null,7,null,null,null,0]
[166,"Сормовский",null,null,7,null,null,null,0]
[167,"Сормовский",null,null,7,null,null,null,0]
[168,"Сормовский",null,null,7,null,null,null,0]
[169,"Сормовский",null,null,7,null,null,null,0]
[170,"Сормовский",null,null,7,null,null,null,0]
[171,"Сормовский",null,null,7,null,null,null,0]
[172,"Сормовский",null,null,7,null,null,null,0]
[173,"Сормовский",null,null,7,null,null,null,0]
[174,"Сормовский",null,null,7,null,null,null,0]
[175,"Сормовский",null,null,7,null,null,null,0]
[176,"Сормовский",null,null,7,null,null,null,0]
[177,"Сормовский",null,null,7,null,null,null,0]
[178,"Сормовский",null,null,7,null,null,null,0]
[179,"Сормовский",null,null,7,null,null,null,0]
[180,"Сормовский",null,null,7,null,null,null,0]
[181,"Сормовский",null,null,7,null,null,null,0]
[182,"Сормовский",null,null,7,null,null,null,0]

{"sheet":"8 класс","index":3,"n_rows":186,"n_cols":11,"rows_kept":186,"cut":false,"hidden":false,"merged":[[0,1,0,3],[0,4,0,9]]}
[null,"Итоговый протокол школьного этапа ВСОШ по ",null,null,"биологии",null,null,null,null,null,"в 2024-2025 уч. году"]
[]
[null,null,null,null,null,null,null,"макс балл",33]
["№ п/п","Муниципалитет/ ГОУ/ЧОУ","ФИО (полностью)","шифр","класс обучается","класс выступает","№ ОО","Кол-во набранных баллов","% выполнения работы","Статус","ФИО учителя (наставника)"]
[1,"Сормовский","Фролов Алексей Вавдимович","sbi24820/edu520802/8/45g52",8,8,80,23.8,{"$f":"H5*100/макс8","v":72.121212121212125},"победитель","Ломака Александра Евгеньевна"]
[2,"Сормовский","Чернова Дарья Сергеевна","sbi24820/edu520802/8/4zv78",8,8,80,22.4,67.878787878787875,"призер","Ломака Александра Евгеньевна"]
[3,"Сормовский","Чванов Роман Алексеевич","sbi24820/edu520802/8/4zv58",8,8,80,18,54.545454545454547,"призер","Ломака Александра Евгеньевна"]
[4,"Сормовский","Лысенкова Анна Сергеевна","sbi24820/edu520802/8/4vv7r",8,8,80,18,54.545454545454547,"призер","Ломака Александра Евгеньевна"]
[5,"Сормовский","Шалова Елизавета Евгеньевна","sbi24820/edu520802/8/4vvvr",8,8,80,13,39.393939393939391,null,"Ломака Александра Евгеньевна"]
[6,"Сормовский",null,null,8,null,null,null,0]
[7,"Сормовский",null,null,8,null,null,null,0]
[8,"Сормовский",null,null,8,null,null,null,0]
[9,"Сормовский",null,null,8,null,null,null,0]
[10,"Сормовский",null,null,8,null,null,null,0]
[11,"Сормовский",null,null,8,null,null,null,0]
[12,"Сормовский",null,null,8,null,null,null,0]
[13,"Сормовский",null,null,8,null,null,null,0]
[14,"Сормовский",null,null,8,null,null,null,0]
[15,"Сормовский",null,null,8,null,null,null,0]
[16,"Сормовский",null,null,8,null,null,null,0]
[17,"Сормовский",null,null,8,null,null,null,0]
[18,"Сормовский",null,null,8,null,null,null,0]
[19,"Сормовский",null,null,8,null,null,null,0]
[20,"Сормовский",null,null,8,null,null,null,0]
[21,"Сормовский",null,null,8,null,null,null,0]
[22,"Сормовский",null,null,8,null,null,null,0]
[23,"Сормовский",null,null,8,null,null,null,0]
[24,"Сормовский",null,null,8,null,null,null,0]
[25,"Сормовский",null,null,8,null,null,null,0]
[26,"Сормовский",null,null,8,null,null,null,0]
[27,"Сормовский",null,null,8,null,null,null,0]
[28,"Сормовский",null,null,8,null,null,null,0]
[29,"Сормовский",null,null,8,null,null,null,0]
[30,"Сормовский",null,null,8,null,null,null,0]
[31,"Сормовский",null,null,8,null,null,null,0]
[32,"Сормовский",null,null,8,null,null,null,0]
[33,"Сормовский",null,null,8,null,null,null,{"$f":"H37*100/макс8","v":0}]
[34,"Сормовский",null,null,8,null,null,null,0]
[35,"Сормовский",null,null,8,null,null,null,0]
[36,"Сормовский",null,null,8,null,null,null,0]
[37,"Сормовский",null,null,8,null,null,null,0]
[38,"Сормовский",null,null,8,null,null,null,0]
[39,"Сормовский",null,null,8,null,null,null,0]
[40,"Сормовский",null,null,8,null,null,null,0]
[41,"Сормовский",null,null,8,null,null,null,0]
[42,"Сормовский",null,null,8,null,null,null,0]
[43,"Сормовский",null,null,8,null,null,null,0]
[44,"Сормовский",null,null,8,null,null,null,0]
[45,"Сормовский",null,null,8,null,null,null,0]
[46,"Сормовский",null,null,8,null,null,null,0]
[47,"Сормовский",null,null,8,null,null,null,0]
[48,"Сормовский",null,null,8,null,null,null,0]
[49,"Сормовский",null,null,8,null,null,null,0]
[50,"Сормовский",null,null,8,null,null,null,0]
[51,"Сормовский",null,null,8,null,null,null,0]
[52,"Сормовский",null,null,8,null,null,null,0]
[53,"Сормовский",null,null,8,null,null,null,0]
[54,"Сормовский",null,null,8,null,null,null,0]
[55,"Сормовский",null,null,8,null,null,null,0]
[56,"Сормовский",null,null,8,null,null,null,0]
[57,"Сормовский",null,null,8,null,null,null,0]
[58,"Сормовский",null,null,8,null,null,null,0]
[59,"Сормовский",null,null,8,null,null,null,0]
[60,"Сормовский",null,null,8,null,null,null,0]
[61,"Сормовский",null,null,8,null,null,null,0]
[62,"Сормовский",null,null,8,null,null,null,0]
[63,"Сормовский",null,null,8,null,null,null,0]
[64,"Сормовский",null,null,8,null,null,null,0]
[65,"Сормовский",null,null,8,null,null,null,{"$f":"H69*100/макс8","v":0}]
[66,"Сормовский",null,null,8,null,null,null,0]
[67,"Сормовский",null,null,8,null,null,null,0]
[68,"Сормовский",null,null,8,null,null,null,0]
[69,"Сормовский",null,null,8,null,null,null,0]
[70,"Сормовский",null,null,8,null,null,null,0]
[71,"Сормовский",null,null,8,null,null,null,0]
[72,"Сормовский",null,null,8,null,null,null,0]
[73,"Сормовский",null,null,8,null,null,null,0]
[74,"Сормовский",null,null,8,null,null,null,0]
[75,"Сормовский",null,null,8,null,null,null,0]
[76,"Сормовский",null,null,8,null,null,null,0]
[77,"Сормовский",null,null,8,null,null,null,0]
[78,"Сормовский",null,null,8,null,null,null,0]
[79,"Сормовский",null,null,8,null,null,null,0]
[80,"Сормовский",null,null,8,null,null,null,0]
[81,"Сормовский",null,null,8,null,null,null,0]
[82,"Сормовский",null,null,8,null,null,null,0]
[83,"Сормовский",null,null,8,null,null,null,0]
[84,"Сормовский",null,null,8,null,null,null,0]
[85,"Сормовский",null,null,8,null,null,null,0]
[86,"Сормовский",null,null,8,null,null,null,0]
[87,"Сормовский",null,null,8,null,null,null,0]
[88,"Сормовский",null,null,8,null,null,null,0]
[89,"Сормовский",null,null,8,null,null,null,0]
[90,"Сормовский",null,null,8,null,null,null,0]
[91,"Сормовский",null,null,8,null,null,null,0]
[92,"Сормовский",null,null,8,null,null,null,0]
[93,"Сормовский",null,null,8,null,null,null,0]
[94,"Сормовский",null,null,8,null,null,null,0]
[95,"Сормовский",null,null,8,null,null,null,0]
[96,"Сормовский",null,null,8,null,null,null,0]
[97,"Сормовский",null,null,8,null,null,null,{"$f":"H101*100/макс8","v":0}]
[98,"Сормовский",null,null,8,null,null,null,0]
[99,"Сормовский",null,null,8,null,null,null,0]
[100,"Сормовский",null,null,8,null,null,null,0]
[101,"Сормовский",null,null,8,null,null,null,0]
[102,"Сормовский",null,null,8,null,null,null,0]
[103,"Сормовский",null,null,8,null,null,null,0]
[104,"Сормовский",null,null,8,null,null,null,0]
[105,"Сормовский",null,null,8,null,null,null,0]
[106,"Сормовский",null,null,8,null,null,null,0]
[107,"Сормовский",null,null,8,null,null,null,0]
[108,"Сормовский",null,null,8,null,null,null,0]
[109,"Сормовский",null,null,8,null,null,null,0]
[110,"Сормовский",null,null,8,null,null,null,0]
[111,"Сормовский",null,null,8,null,null,null,0]
[112,"Сормовский",null,null,8,null,null,null,0]
[113,"Сормовский",null,null,8,null,null,null,0]
[114,"Сормовский",null,null,8,null,null,null,0]
[115,"Сормовский",null,null,8,null,null,null,0]
[116,"Сормовский",null,null,8,null,null,null,0]
[117,"Сормовский",null,null,8,null,null,null,0]
[118,"Сормовский",null,null,8,null,null,null,0]
[119,"Сормовский",null,null,8,null,null,null,0]
[120,"Сормовский",null,null,8,null,null,null,0]
[121,"Сормовский",null,null,8,null,null,null,0]
[122,"Сормовский",null,null,8,null,null,null,0]
[123,"Сормовский",null,null,8,null,null,null,0]
[124,"Сормовский",null,null,8,null,null,null,0]
[125,"Сормовский",null,null,8,null,null,null,0]
[126,"Сормовский",null,null,8,null,null,null,0]
[127,"Сормовский",null,null,8,null,null,null,0]
[128,"Сормовский",null,null,8,null,null,null,0]
[129,"Сормовский",null,null,8,null,null,null,{"$f":"H133*100/макс8","v":0}]
[130,"Сормовский",null,null,8,null,null,null,0]
[131,"Сормовский",null,null,8,null,null,null,0]
[132,"Сормовский",null,null,8,null,null,null,0]
[133,"Сормовский",null,null,8,null,null,null,0]
[134,"Сормовский",null,null,8,null,null,null,0]
[135,"Сормовский",null,null,8,null,null,null,0]
[136,"Сормовский",null,null,8,null,null,null,0]
[137,"Сормовский",null,null,8,null,null,null,0]
[138,"Сормовский",null,null,8,null,null,null,0]
[139,"Сормовский",null,null,8,null,null,null,0]
[140,"Сормовский",null,null,8,null,null,null,0]
[141,"Сормовский",null,null,8,null,null,null,0]
[142,"Сормовский",null,null,8,null,null,null,0]
[143,"Сормовский",null,null,8,null,null,null,0]
[144,"Сормовский",null,null,8,null,null,null,0]
[145,"Сормовский",null,null,8,null,null,null,0]
[146,"Сормовский",null,null,8,null,null,null,0]
[147,"Сормовский",null,null,8,null,null,null,0]
[148,"Сормовский",null,null,8,null,null,null,0]
[149,"Сормовский",null,null,8,null,null,null,0]
[150,"Сормовский",null,null,8,null,null,null,0]
[151,"Сормовский",null,null,8,null,null,null,0]
[152,"Сормовский",null,null,8,null,null,null,0]
[153,"Сормовский",null,null,8,null,null,null,0]
[154,"Сормовский",null,null,8,null,null,null,0]
[155,"Сормовский",null,null,8,null,null,null,0]
[156,"Сормовский",null,null,8,null,null,null,0]
[157,"Сормовский",null,null,8,null,null,null,0]
[158,"Сормовский",null,null,8,null,null,null,0]
[159,"Сормовский",null,null,8,null,null,null,0]
[160,"Сормовский",null,null,8,null,null,null,0]
[161,"Сормовский",null,null,8,null,null,null,{"$f":"H165*100/макс8","v":0}]
[162,"Сормовский",null,null,8,null,null,null,0]
[163,"Сормовский",null,null,8,null,null,null,0]
[164,"Сормовский",null,null,8,null,null,null,0]
[165,"Сормовский",null,null,8,null,null,null,0]
[166,"Сормовский",null,null,8,null,null,null,0]
[167,"Сормовский",null,null,8,null,null,null,0]
[168,"Сормовский",null,null,8,null,null,null,0]
[169,"Сормовский",null,null,8,null,null,null,0]
[170,"Сормовский",null,null,8,null,null,null,0]
[171,"Сормовский",null,null,8,null,null,null,0]
[172,"Сормовский",null,null,8,null,null,null,0]
[173,"Сормовский",null,null,8,null,null,null,0]
[174,"Сормовский",null,null,8,null,null,null,0]
[175,"Сормовский",null,null,8,null,null,null,0]
[176,"Сормовский",null,null,8,null,null,null,0]
[177,"Сормовский",null,null,8,null,null,null,0]
[178,"Сормовский",null,null,8,null,null,null,0]
[179,"Сормовский",null,null,8,null,null,null,0]
[180,"Сормовский",null,null,8,null,null,null,0]
[181,"Сормовский",null,null,8,null,null,null,0]
[182,"Сормовский",null,null,8,null,null,null,0]

{"sheet":"9 класс","index":4,"n_rows":186,"n_cols":11,"rows_kept":186,"cut":false,"hidden":false,"merged":[[0,1,0,3],[0,4,0,9]]}
[null,"Итоговый протокол школьного этапа ВСОШ по ",null,null,"биологии",null,null,null,null,null,"в 2024-2025 уч. году"]
[]
[null,null,null,null,null,null,null,"макс балл",56]
["№ п/п","Муниципалитет/ ГОУ/ЧОУ","ФИО (полностью)","шифр","класс обучается","класс выступает","№ ОО","Кол-во набранных баллов","% выполнения работы","Статус","ФИО учителя (наставника)"]
[1,"Сормовский","Ремизова Алексндра Владимировна","sbi24920/edu520802/9/45gg2",9,9,80,43.4,{"$f":"H5*100/макс9","v":77.5},"победитель","Ломака Александра Евгеньевна"]
[2,"Сормовский","Быкова Вероника Сергеевна","sbi24920/edu520802/9/3222z",9,9,80,35,62.5,"призер","Ломака Александра Евгеньевна"]
[3,"Сормовский","Сейфетдинова Мария Валерьевна","sbi24920/edu520802/9/39995",9,9,80,33.9,60.535714285714285,"призер","Ломака Александра Евгеньевна"]
[4,"Сормовский","Иванова Арина Максимовна","sbi24920/edu520802/9/4qgg6",9,9,80,26.9,48.035714285714285,null,"Ломака Александра Евгеньевна"]
[5,"Сормовский","Синдячкиа Анна Юрьевна","sbi24920/edu520802/9/4w22r",9,9,80,23.1,41.25,null,"Ломака Александра Евгеньевна"]
[6,"Сормовский","Комарова Мария Константиновна","sbi24920/edu520802/9/37g5r",9,9,80,15.6,27.857142857142858,null,"Ломака Александра Евгеньевна"]
[7,"Сормовский",null,null,9,null,null,null,0]
[8,"Сормовский",null,null,9,null,null,null,0]
[9,"Сормовский",null,null,9,null,null,null,0]
[10,"Сормовский",null,null,9,null,null,null,0]
[11,"Сормовский",null,null,9,null,null,null,0]
[12,"Сормовский",null,null,9,null,null,null,0]
[13,"Сормовский",null,null,9,null,null,null,0]
[14,"Сормовский",null,null,9,null,null,null,0]
[15,"Сормовский",null,null,9,null,null,null,0]
[16,"Сормовский",null,null,9,null,null,null,0]
[17,"Сормовский",null,null,9,null,null,null,0]
[18,"Сормовский",null,null,9,null,null,null,0]
[19,"Сормовский",null,null,9,null,null,null,0]
[20,"Сормовский",null,null,9,null,null,null,0]
[21,"Сормовский",null,null,9,null,null,null,0]
[22,"Сормовский",null,null,9,null,null,null,0]
[23,"Сормовский",null,null,9,null,null,null,0]
[24,"Сормовский",null,null,9,null,null,null,0]
[25,"Сормовский",null,null,9,null,null,null,0]
[26,"Сормовский",null,null,9,null,null,null,0]
[27,"Сормовский",null,null,9,null,null,null,0]
[28,"Сормовский",null,null,9,null,null,null,0]
[29,"Сормовский",null,null,9,null,null,null,0]
[30,"Сормовский",null,null,9,null,null,null,0]
[31,"Сормовский",null,null,9,null,null,null,0]
[32,"Сормовский",null,null,9,null,null,null,0]
[33,"Сормовский",null,null,9,null,null,null,{"$f":"H37*100/макс9","v":0}]
[34,"Сормовский",null,null,9,null,null,null,0]
[35,"Сормовский",null,null,9,null,null,null,0]
[36,"Сормовский",null,null,9,null,null,null,0]
[37,"Сормовский",null,null,9,null,null,null,0]
[38,"Сормовский",null,null,9,null,null,null,0]
[39,"Сормовский",null,null,9,null,null,null,0]
[40,"Сормовский",null,null,9,null,null,null,0]
[41,"Сормовский",null,null,9,null,null,null,0]
[42,"Сормовский",null,null,9,null,null,null,0]
[43,"Сормовский",null,null,9,null,null,null,0]
[44,"Сормовский",null,null,9,null,null,null,0]
[45,"Сормовский",null,null,9,null,null,null,0]
[46,"Сормовский",null,null,9,null,null,null,0]
[47,"Сормовский",null,null,9,null,null,null,0]
[48,"Сормовский",null,null,9,null,null,null,0]
[49,"Сормовский",null,null,9,null,null,null,0]
[50,"Сормовский",null,null,9,null,null,null,0]
[51,"Сормовский",null,null,9,null,null,null,0]
[52,"Сормовский",null,null,9,null,null,null,0]
[53,"Сормовский",null,null,9,null,null,null,0]
[54,"Сормовский",null,null,9,null,null,null,0]
[55,"Сормовский",null,null,9,null,null,null,0]
[56,"Сормовский",null,null,9,null,null,null,0]
[57,"Сормовский",null,null,9,null,null,null,0]
[58,"Сормовский",null,null,9,null,null,null,0]
[59,"Сормовский",null,null,9,null,null,null,0]
[60,"Сормовский",null,null,9,null,null,null,0]
[61,"Сормовский",null,null,9,null,null,null,0]
[62,"Сормовский",null,null,9,null,null,null,0]
[63,"Сормовский",null,null,9,null,null,null,0]
[64,"Сормовский",null,null,9,null,null,null,0]
[65,"Сормовский",null,null,9,null,null,null,{"$f":"H69*100/макс9","v":0}]
[66,"Сормовский",null,null,9,null,null,null,0]
[67,"Сормовский",null,null,9,null,null,null,0]
[68,"Сормовский",null,null,9,null,null,null,0]
[69,"Сормовский",null,null,9,null,null,null,0]
[70,"Сормовский",null,null,9,null,null,null,0]
[71,"Сормовский",null,null,9,null,null,null,0]
[72,"Сормовский",null,null,9,null,null,null,0]
[73,"Сормовский",null,null,9,null,null,null,0]
[74,"Сормовский",null,null,9,null,null,null,0]
[75,"Сормовский",null,null,9,null,null,null,0]
[76,"Сормовский",null,null,9,null,null,null,0]
[77,"Сормовский",null,null,9,null,null,null,0]
[78,"Сормовский",null,null,9,null,null,null,0]
[79,"Сормовский",null,null,9,null,null,null,0]
[80,"Сормовский",null,null,9,null,null,null,0]
[81,"Сормовский",null,null,9,null,null,null,0]
[82,"Сормовский",null,null,9,null,null,null,0]
[83,"Сормовский",null,null,9,null,null,null,0]
[84,"Сормовский",null,null,9,null,null,null,0]
[85,"Сормовский",null,null,9,null,null,null,0]
[86,"Сормовский",null,null,9,null,null,null,0]
[87,"Сормовский",null,null,9,null,null,null,0]
[88,"Сормовский",null,null,9,null,null,null,0]
[89,"Сормовский",null,null,9,null,null,null,0]
[90,"Сормовский",null,null,9,null,null,null,0]
[91,"Сормовский",null,null,9,null,null,null,0]
[92,"Сормовский",null,null,9,null,null,null,0]
[93,"Сормовский",null,null,9,null,null,null,0]
[94,"Сормовский",null,null,9,null,null,null,0]
[95,"Сормовский",null,null,9,null,null,null,0]
[96,"Сормовский",null,null,9,null,null,null,0]
[97,"Сормовский",null,null,9,null,null,null,{"$f":"H101*100/макс9","v":0}]
[98,"Сормовский",null,null,9,null,null,null,0]
[99,"Сормовский",null,null,9,null,null,null,0]
[100,"Сормовский",null,null,9,null,null,null,0]
[101,"Сормовский",null,null,9,null,null,null,0]
[102,"Сормовский",null,null,9,null,null,null,0]
[103,"Сормовский",null,null,9,null,null,null,0]
[104,"Сормовский",null,null,9,null,null,null,0]
[105,"Сормовский",null,null,9,null,null,null,0]
[106,"Сормовский",null,null,9,null,null,null,0]
[107,"Сормовский",null,null,9,null,null,null,0]
[108,"Сормовский",null,null,9,null,null,null,0]
[109,"Сормовский",null,null,9,null,null,null,0]
[110,"Сормовский",null,null,9,null,null,null,0]
[111,"Сормовский",null,null,9,null,null,null,0]
[112,"Сормовский",null,null,9,null,null,null,0]
[113,"Сормовский",null,null,9,null,null,null,0]
[114,"Сормовский",null,null,9,null,null,null,0]
[115,"Сормовский",null,null,9,null,null,null,0]
[116,"Сормовский",null,null,9,null,null,null,0]
[117,"Сормовский",null,null,9,null,null,null,0]
[118,"Сормовский",null,null,9,null,null,null,0]
[119,"Сормовский",null,null,9,null,null,null,0]
[120,"Сормовский",null,null,9,null,null,null,0]
[121,"Сормовский",null,null,9,null,null,null,0]
[122,"Сормовский",null,null,9,null,null,null,0]
[123,"Сормовский",null,null,9,null,null,null,0]
[124,"Сормовский",null,null,9,null,null,null,0]
[125,"Сормовский",null,null,9,null,null,null,0]
[126,"Сормовский",null,null,9,null,null,null,0]
[127,"Сормовский",null,null,9,null,null,null,0]
[128,"Сормовский",null,null,9,null,null,null,0]
[129,"Сормовский",null,null,9,null,null,null,{"$f":"H133*100/макс9","v":0}]
[130,"Сормовский",null,null,9,null,null,null,0]
[131,"Сормовский",null,null,9,null,null,null,0]
[132,"Сормовский",null,null,9,null,null,null,0]
[133,"Сормовский",null,null,9,null,null,null,0]
[134,"Сормовский",null,null,9,null,null,null,0]
[135,"Сормовский",null,null,9,null,null,null,0]
[136,"Сормовский",null,null,9,null,null,null,0]
[137,"Сормовский",null,null,9,null,null,null,0]
[138,"Сормовский",null,null,9,null,null,null,0]
[139,"Сормовский",null,null,9,null,null,null,0]
[140,"Сормовский",null,null,9,null,null,null,0]
[141,"Сормовский",null,null,9,null,null,null,0]
[142,"Сормовский",null,null,9,null,null,null,0]
[143,"Сормовский",null,null,9,null,null,null,0]
[144,"Сормовский",null,null,9,null,null,null,0]
[145,"Сормовский",null,null,9,null,null,null,0]
[146,"Сормовский",null,null,9,null,null,null,0]
[147,"Сормовский",null,null,9,null,null,null,0]
[148,"Сормовский",null,null,9,null,null,null,0]
[149,"Сормовский",null,null,9,null,null,null,0]
[150,"Сормовский",null,null,9,null,null,null,0]
[151,"Сормовский",null,null,9,null,null,null,0]
[152,"Сормовский",null,null,9,null,null,null,0]
[153,"Сормовский",null,null,9,null,null,null,0]
[154,"Сормовский",null,null,9,null,null,null,0]
[155,"Сормовский",null,null,9,null,null,null,0]
[156,"Сормовский",null,null,9,null,null,null,0]
[157,"Сормовский",null,null,9,null,null,null,0]
[158,"Сормовский",null,null,9,null,null,null,0]
[159,"Сормовский",null,null,9,null,null,null,0]
[160,"Сормовский",null,null,9,null,null,null,0]
[161,"Сормовский",null,null,9,null,null,null,{"$f":"H165*100/макс9","v":0}]
[162,"Сормовский",null,null,9,null,null,null,0]
[163,"Сормовский",null,null,9,null,null,null,0]
[164,"Сормовский",null,null,9,null,null,null,0]
[165,"Сормовский",null,null,9,null,null,null,0]
[166,"Сормовский",null,null,9,null,null,null,0]
[167,"Сормовский",null,null,9,null,null,null,0]
[168,"Сормовский",null,null,9,null,null,null,0]
[169,"Сормовский",null,null,9,null,null,null,0]
[170,"Сормовский",null,null,9,null,null,null,0]
[171,"Сормовский",null,null,9,null,null,null,0]
[172,"Сормовский",null,null,9,null,null,null,0]
[173,"Сормовский",null,null,9,null,null,null,0]
[174,"Сормовский",null,null,9,null,null,null,0]
[175,"Сормовский",null,null,9,null,null,null,0]
[176,"Сормовский",null,null,9,null,null,null,0]
[177,"Сормовский",null,null,9,null,null,null,0]
[178,"Сормовский",null,null,9,null,null,null,0]
[179,"Сормовский",null,null,9,null,null,null,0]
[180,"Сормовский",null,null,9,null,null,null,0]
[181,"Сормовский",null,null,9,null,null,null,0]
[182,"Сормовский",null,null,9,null,null,null,0]

{"sheet":"10 класс","index":5,"n_rows":186,"n_cols":11,"rows_kept":186,"cut":false,"hidden":false,"merged":[[0,1,0,3],[0,4,0,9]]}
[null,"Итоговый протокол школьного этапа ВСОШ по ",null,null,"биологии",null,null,null,null,null,"в 2024-2025 уч. году"]
[]
[null,null,null,null,null,null,null,"макс балл",63]
["№ п/п","Муниципалитет/ ГОУ/ЧОУ","ФИО (полностью)","шифр","класс обучается","класс выступает","№ ОО","Кол-во набранных баллов","% выполнения работы","Статус","ФИО учителя (наставника)"]
[1,"Сормовский","Мардарь Артемий Владимирович","sbi241020/edu520802/10/45r23",10,10,80,19.8,{"$f":"H5*100/макс10","v":31.428571428571427},null,"Недельская Лариса Анатольевна"]
[2,"Сормовский",null,null,10,null,null,null,0]
[3,"Сормовский",null,null,10,null,null,null,0]
[4,"Сормовский",null,null,10,null,null,null,0]
[5,"Сормовский",null,null,10,null,null,null,0]
[6,"Сормовский",null,null,10,null,null,null,0]
[7,"Сормовский",null,null,10,null,null,null,0]
[8,"Сормовский",null,null,10,null,null,null,0]
[9,"Сормовский",null,null,10,null,null,null,0]
[10,"Сормовский",null,null,10,null,null,null,0]
[11,"Сормовский",null,null,10,null,null,null,0]
[12,"Сормовский",null,null,10,null,null,null,0]
[13,"Сормовский",null,null,10,null,null,null,0]
[14,"Сормовский",null,null,10,null,null,null,0]
[15,"Сормовский",null,null,10,null,null,null,0]
[16,"Сормовский",null,null,10,null,null,null,0]
[17,"Сормовский",null,null,10,null,null,null,0]
[18,"Сормовский",null,null,10,null,null,null,0]
[19,"Сормовский",null,null,10,null,null,null,0]
[20,"Сормовский",null,null,10,null,null,null,0]
[21,"Сормовский",null,null,10,null,null,null,0]
[22,"Сормовский",null,null,10,null,null,null,0]
[23,"Сормовский",null,null,10,null,null,null,0]
[24,"Сормовский",null,null,10,null,null,null,0]
[25,"Сормовский",null,null,10,null,null,null,0]
[26,"Сормовский",null,null,10,null,null,null,0]
[27,"Сормовский",null,null,10,null,null,null,0]
[28,"Сормовский",null,null,10,null,null,null,0]
[29,"Сормовский",null,null,10,null,null,null,0]
[30,"Сормовский",null,null,10,null,null,null,0]
[31,"Сормовский",null,null,10,null,null,null,0]
[32,"Сормовский",null,null,10,null,null,null,0]
[33,"Сормовский",null,null,10,null,null,null,{"$f":"H37*100/макс10","v":0}]
[34,"Сормовский",null,null,10,null,null,null,0]
[35,"Сормовский",null,null,10,null,null,null,0]
[36,"Сормовский",null,null,10,null,null,null,0]
[37,"Сормовский",null,null,10,null,null,null,0]
[38,"Сормовский",null,null,10,null,null,null,0]
[39,"Сормовский",null,null,10,null,null,null,0]
[40,"Сормовский",null,null,10,null,null,null,0]
[41,"Сормовский",null,null,10,null,null,null,0]
[42,"Сормовский",null,null,10,null,null,null,0]
[43,"Сормовский",null,null,10,null,null,null,0]
[44,"Сормовский",null,null,10,null,null,null,0]
[45,"Сормовский",null,null,10,null,null,null,0]
[46,"Сормовский",null,null,10,null,null,null,0]
[47,"Сормовский",null,null,10,null,null,null,0]
[48,"Сормовский",null,null,10,null,null,null,0]
[49,"Сормовский",null,null,10,null,null,null,0]
[50,"Сормовский",null,null,10,null,null,null,0]
[51,"Сормовский",null,null,10,null,null,null,0]
[52,"Сормовский",null,null,10,null,null,null,0]
[53,"Сормовский",null,null,10,null,null,null,0]
[54,"Сормовский",null,null,10,null,null,null,0]
[55,"Сормовский",null,null,10,null,null,null,0]
[56,"Сормовский",null,null,10,null,null,null,0]
[57,"Сормовский",null,null,10,null,null,null,0]
[58,"Сормовский",null,null,10,null,null,null,0]
[59,"Сормовский",null,null,10,null,null,null,0]
[60,"Сормовский",null,null,10,null,null,null,0]
[61,"Сормовский",null,null,10,null,null,null,0]
[62,"Сормовский",null,null,10,null,null,null,0]
[63,"Сормовский",null,null,10,null,null,null,0]
[64,"Сормовский",null,null,10,null,null,null,0]
[65,"Сормовский",null,null,10,null,null,null,{"$f":"H69*100/макс10","v":0}]
[66,"Сормовский",null,null,10,null,null,null,0]
[67,"Сормовский",null,null,10,null,null,null,0]
[68,"Сормовский",null,null,10,null,null,null,0]
[69,"Сормовский",null,null,10,null,null,null,0]
[70,"Сормовский",null,null,10,null,null,null,0]
[71,"Сормовский",null,null,10,null,null,null,0]
[72,"Сормовский",null,null,10,null,null,null,0]
[73,"Сормовский",null,null,10,null,null,null,0]
[74,"Сормовский",null,null,10,null,null,null,0]
[75,"Сормовский",null,null,10,null,null,null,0]
[76,"Сормовский",null,null,10,null,null,null,0]
[77,"Сормовский",null,null,10,null,null,null,0]
[78,"Сормовский",null,null,10,null,null,null,0]
[79,"Сормовский",null,null,10,null,null,null,0]
[80,"Сормовский",null,null,10,null,null,null,0]
[81,"Сормовский",null,null,10,null,null,null,0]
[82,"Сормовский",null,null,10,null,null,null,0]
[83,"Сормовский",null,null,10,null,null,null,0]
[84,"Сормовский",null,null,10,null,null,null,0]
[85,"Сормовский",null,null,10,null,null,null,0]
[86,"Сормовский",null,null,10,null,null,null,0]
[87,"Сормовский",null,null,10,null,null,null,0]
[88,"Сормовский",null,null,10,null,null,null,0]
[89,"Сормовский",null,null,10,null,null,null,0]
[90,"Сормовский",null,null,10,null,null,null,0]
[91,"Сормовский",null,null,10,null,null,null,0]
[92,"Сормовский",null,null,10,null,null,null,0]
[93,"Сормовский",null,null,10,null,null,null,0]
[94,"Сормовский",null,null,10,null,null,null,0]
[95,"Сормовский",null,null,10,null,null,null,0]
[96,"Сормовский",null,null,10,null,null,null,0]
[97,"Сормовский",null,null,10,null,null,null,{"$f":"H101*100/макс10","v":0}]
[98,"Сормовский",null,null,10,null,null,null,0]
[99,"Сормовский",null,null,10,null,null,null,0]
[100,"Сормовский",null,null,10,null,null,null,0]
[101,"Сормовский",null,null,10,null,null,null,0]
[102,"Сормовский",null,null,10,null,null,null,0]
[103,"Сормовский",null,null,10,null,null,null,0]
[104,"Сормовский",null,null,10,null,null,null,0]
[105,"Сормовский",null,null,10,null,null,null,0]
[106,"Сормовский",null,null,10,null,null,null,0]
[107,"Сормовский",null,null,10,null,null,null,0]
[108,"Сормовский",null,null,10,null,null,null,0]
[109,"Сормовский",null,null,10,null,null,null,0]
[110,"Сормовский",null,null,10,null,null,null,0]
[111,"Сормовский",null,null,10,null,null,null,0]
[112,"Сормовский",null,null,10,null,null,null,0]
[113,"Сормовский",null,null,10,null,null,null,0]
[114,"Сормовский",null,null,10,null,null,null,0]
[115,"Сормовский",null,null,10,null,null,null,0]
[116,"Сормовский",null,null,10,null,null,null,0]
[117,"Сормовский",null,null,10,null,null,null,0]
[118,"Сормовский",null,null,10,null,null,null,0]
[119,"Сормовский",null,null,10,null,null,null,0]
[120,"Сормовский",null,null,10,null,null,null,0]
[121,"Сормовский",null,null,10,null,null,null,0]
[122,"Сормовский",null,null,10,null,null,null,0]
[123,"Сормовский",null,null,10,null,null,null,0]
[124,"Сормовский",null,null,10,null,null,null,0]
[125,"Сормовский",null,null,10,null,null,null,0]
[126,"Сормовский",null,null,10,null,null,null,0]
[127,"Сормовский",null,null,10,null,null,null,0]
[128,"Сормовский",null,null,10,null,null,null,0]
[129,"Сормовский",null,null,10,null,null,null,{"$f":"H133*100/макс10","v":0}]
[130,"Сормовский",null,null,10,null,null,null,0]
[131,"Сормовский",null,null,10,null,null,null,0]
[132,"Сормовский",null,null,10,null,null,null,0]
[133,"Сормовский",null,null,10,null,null,null,0]
[134,"Сормовский",null,null,10,null,null,null,0]
[135,"Сормовский",null,null,10,null,null,null,0]
[136,"Сормовский",null,null,10,null,null,null,0]
[137,"Сормовский",null,null,10,null,null,null,0]
[138,"Сормовский",null,null,10,null,null,null,0]
[139,"Сормовский",null,null,10,null,null,null,0]
[140,"Сормовский",null,null,10,null,null,null,0]
[141,"Сормовский",null,null,10,null,null,null,0]
[142,"Сормовский",null,null,10,null,null,null,0]
[143,"Сормовский",null,null,10,null,null,null,0]
[144,"Сормовский",null,null,10,null,null,null,0]
[145,"Сормовский",null,null,10,null,null,null,0]
[146,"Сормовский",null,null,10,null,null,null,0]
[147,"Сормовский",null,null,10,null,null,null,0]
[148,"Сормовский",null,null,10,null,null,null,0]
[149,"Сормовский",null,null,10,null,null,null,0]
[150,"Сормовский",null,null,10,null,null,null,0]
[151,"Сормовский",null,null,10,null,null,null,0]
[152,"Сормовский",null,null,10,null,null,null,0]
[153,"Сормовский",null,null,10,null,null,null,0]
[154,"Сормовский",null,null,10,null,null,null,0]
[155,"Сормовский",null,null,10,null,null,null,0]
[156,"Сормовский",null,null,10,null,null,null,0]
[157,"Сормовский",null,null,10,null,null,null,0]
[158,"Сормовский",null,null,10,null,null,null,0]
[159,"Сормовский",null,null,10,null,null,null,0]
[160,"Сормовский",null,null,10,null,null,null,0]
[161,"Сормовский",null,null,10,null,null,null,{"$f":"H165*100/макс10","v":0}]
[162,"Сормовский",null,null,10,null,null,null,0]
[163,"Сормовский",null,null,10,null,null,null,0]
[164,"Сормовский",null,null,10,null,null,null,0]
[165,"Сормовский",null,null,10,null,null,null,0]
[166,"Сормовский",null,null,10,null,null,null,0]
[167,"Сормовский",null,null,10,null,null,null,0]
[168,"Сормовский",null,null,10,null,null,null,0]
[169,"Сормовский",null,null,10,null,null,null,0]
[170,"Сормовский",null,null,10,null,null,null,0]
[171,"Сормовский",null,null,10,null,null,null,0]
[172,"Сормовский",null,null,10,null,null,null,0]
[173,"Сормовский",null,null,10,null,null,null,0]
[174,"Сормовский",null,null,10,null,null,null,0]
[175,"Сормовский",null,null,10,null,null,null,0]
[176,"Сормовский",null,null,10,null,null,null,0]
[177,"Сормовский",null,null,10,null,null,null,0]
[178,"Сормовский",null,null,10,null,null,null,0]
[179,"Сормовский",null,null,10,null,null,null,0]
[180,"Сормовский",null,null,10,null,null,null,0]
[181,"Сормовский",null,null,10,null,null,null,0]
[182,"Сормовский",null,null,10,null,null,null,0]

{"sheet":"11 класс","index":6,"n_rows":186,"n_cols":11,"rows_kept":186,"cut":false,"hidden":false,"merged":[[0,1,0,3],[0,4,0,9]]}
[null,"Итоговый протокол школьного этапа ВСОШ по ",null,null,"биологии",null,null,null,null,null,"в 2024-2025 уч. году"]
[]
[null,null,null,null,null,null,null,"макс балл",70]
["№ п/п","Муниципалитет/ ГОУ/ЧОУ","ФИО (полностью)","шифр","класс обучается","класс выступает","№ ОО","Кол-во набранных баллов","% выполнения работы","Статус","ФИО учителя (наставника)"]
[1,"Сормовский","Бахирева Олеся Александровна","sbi241120/edu520802/11/4zz84",11,11,80,53.9,{"$f":"H5*100/макс11","v":77},"победитель","Недельская Лариса Анатольевна"]
[2,"Сормовский","Ставцева Софья Сергеевна","sbi241120/edu520802/11/32qz4",11,11,80,52.7,75.285714285714292,"призер","Недельская Лариса Анатольевна"]
[3,"Сормовский","Тюрина Екатерина Михайловна","sbi241120/edu520802/11/4vrr4",11,11,80,51.7,73.857142857142861,"призер","Недельская Лариса Анатольевна"]
[4,"Сормовский","Нино Тимофей Евгеньевич","sbi241120/edu520802/11/3g5q3",11,11,80,42.2,60.285714285714285,"призер","Недельская Лариса Анатольевна"]
[5,"Сормовский","Буракова Татьяна Дмитриевна","sbi241120/edu520802/11/45r23",11,11,80,41.1,58.714285714285715,"призер","Недельская Лариса Анатольевна"]
[6,"Сормовский","Подчищаева Екатерина Алексеевна","sbi241120/edu520802/11/4q564",11,11,80,40.1,57.285714285714285,"призер","Недельская Лариса Анатольевна"]
[7,"Сормовский","Левкин Даниил Михайлович","sbi241120/edu520802/11/39654",11,11,80,25.5,36.428571428571431,null,"Недельская Лариса Анатольевна"]
[8,"Сормовский",null,null,11,null,null,null,0]
[9,"Сормовский",null,null,11,null,null,null,0]
[10,"Сормовский",null,null,11,null,null,null,0]
[11,"Сормовский",null,null,11,null,null,null,0]
[12,"Сормовский",null,null,11,null,null,null,0]
[13,"Сормовский",null,null,11,null,null,null,0]
[14,"Сормовский",null,null,11,null,null,null,0]
[15,"Сормовский",null,null,11,null,null,null,0]
[16,"Сормовский",null,null,11,null,null,null,0]
[17,"Сормовский",null,null,11,null,null,null,0]
[18,"Сормовский",null,null,11,null,null,null,0]
[19,"Сормовский",null,null,11,null,null,null,0]
[20,"Сормовский",null,null,11,null,null,null,0]
[21,"Сормовский",null,null,11,null,null,null,0]
[22,"Сормовский",null,null,11,null,null,null,0]
[23,"Сормовский",null,null,11,null,null,null,0]
[24,"Сормовский",null,null,11,null,null,null,0]
[25,"Сормовский",null,null,11,null,null,null,0]
[26,"Сормовский",null,null,11,null,null,null,0]
[27,"Сормовский",null,null,11,null,null,null,0]
[28,"Сормовский",null,null,11,null,null,null,0]
[29,"Сормовский",null,null,11,null,null,null,0]
[30,"Сормовский",null,null,11,null,null,null,0]
[31,"Сормовский",null,null,11,null,null,null,0]
[32,"Сормовский",null,null,11,null,null,null,0]
[33,"Сормовский",null,null,11,null,null,null,{"$f":"H37*100/макс11","v":0}]
[34,"Сормовский",null,null,11,null,null,null,0]
[35,"Сормовский",null,null,11,null,null,null,0]
[36,"Сормовский",null,null,11,null,null,null,0]
[37,"Сормовский",null,null,11,null,null,null,0]
[38,"Сормовский",null,null,11,null,null,null,0]
[39,"Сормовский",null,null,11,null,null,null,0]
[40,"Сормовский",null,null,11,null,null,null,0]
[41,"Сормовский",null,null,11,null,null,null,0]
[42,"Сормовский",null,null,11,null,null,null,0]
[43,"Сормовский",null,null,11,null,null,null,0]
[44,"Сормовский",null,null,11,null,null,null,0]
[45,"Сормовский",null,null,11,null,null,null,0]
[46,"Сормовский",null,null,11,null,null,null,0]
[47,"Сормовский",null,null,11,null,null,null,0]
[48,"Сормовский",null,null,11,null,null,null,0]
[49,"Сормовский",null,null,11,null,null,null,0]
[50,"Сормовский",null,null,11,null,null,null,0]
[51,"Сормовский",null,null,11,null,null,null,0]
[52,"Сормовский",null,null,11,null,null,null,0]
[53,"Сормовский",null,null,11,null,null,null,0]
[54,"Сормовский",null,null,11,null,null,null,0]
[55,"Сормовский",null,null,11,null,null,null,0]
[56,"Сормовский",null,null,11,null,null,null,0]
[57,"Сормовский",null,null,11,null,null,null,0]
[58,"Сормовский",null,null,11,null,null,null,0]
[59,"Сормовский",null,null,11,null,null,null,0]
[60,"Сормовский",null,null,11,null,null,null,0]
[61,"Сормовский",null,null,11,null,null,null,0]
[62,"Сормовский",null,null,11,null,null,null,0]
[63,"Сормовский",null,null,11,null,null,null,0]
[64,"Сормовский",null,null,11,null,null,null,0]
[65,"Сормовский",null,null,11,null,null,null,{"$f":"H69*100/макс11","v":0}]
[66,"Сормовский",null,null,11,null,null,null,0]
[67,"Сормовский",null,null,11,null,null,null,0]
[68,"Сормовский",null,null,11,null,null,null,0]
[69,"Сормовский",null,null,11,null,null,null,0]
[70,"Сормовский",null,null,11,null,null,null,0]
[71,"Сормовский",null,null,11,null,null,null,0]
[72,"Сормовский",null,null,11,null,null,null,0]
[73,"Сормовский",null,null,11,null,null,null,0]
[74,"Сормовский",null,null,11,null,null,null,0]
[75,"Сормовский",null,null,11,null,null,null,0]
[76,"Сормовский",null,null,11,null,null,null,0]
[77,"Сормовский",null,null,11,null,null,null,0]
[78,"Сормовский",null,null,11,null,null,null,0]
[79,"Сормовский",null,null,11,null,null,null,0]
[80,"Сормовский",null,null,11,null,null,null,0]
[81,"Сормовский",null,null,11,null,null,null,0]
[82,"Сормовский",null,null,11,null,null,null,0]
[83,"Сормовский",null,null,11,null,null,null,0]
[84,"Сормовский",null,null,11,null,null,null,0]
[85,"Сормовский",null,null,11,null,null,null,0]
[86,"Сормовский",null,null,11,null,null,null,0]
[87,"Сормовский",null,null,11,null,null,null,0]
[88,"Сормовский",null,null,11,null,null,null,0]
[89,"Сормовский",null,null,11,null,null,null,0]
[90,"Сормовский",null,null,11,null,null,null,0]
[91,"Сормовский",null,null,11,null,null,null,0]
[92,"Сормовский",null,null,11,null,null,null,0]
[93,"Сормовский",null,null,11,null,null,null,0]
[94,"Сормовский",null,null,11,null,null,null,0]
[95,"Сормовский",null,null,11,null,null,null,0]
[96,"Сормовский",null,null,11,null,null,null,0]
[97,"Сормовский",null,null,11,null,null,null,{"$f":"H101*100/макс11","v":0}]
[98,"Сормовский",null,null,11,null,null,null,0]
[99,"Сормовский",null,null,11,null,null,null,0]
[100,"Сормовский",null,null,11,null,null,null,0]
[101,"Сормовский",null,null,11,null,null,null,0]
[102,"Сормовский",null,null,11,null,null,null,0]
[103,"Сормовский",null,null,11,null,null,null,0]
[104,"Сормовский",null,null,11,null,null,null,0]
[105,"Сормовский",null,null,11,null,null,null,0]
[106,"Сормовский",null,null,11,null,null,null,0]
[107,"Сормовский",null,null,11,null,null,null,0]
[108,"Сормовский",null,null,11,null,null,null,0]
[109,"Сормовский",null,null,11,null,null,null,0]
[110,"Сормовский",null,null,11,null,null,null,0]
[111,"Сормовский",null,null,11,null,null,null,0]
[112,"Сормовский",null,null,11,null,null,null,0]
[113,"Сормовский",null,null,11,null,null,null,0]
[114,"Сормовский",null,null,11,null,null,null,0]
[115,"Сормовский",null,null,11,null,null,null,0]
[116,"Сормовский",null,null,11,null,null,null,0]
[117,"Сормовский",null,null,11,null,null,null,0]
[118,"Сормовский",null,null,11,null,null,null,0]
[119,"Сормовский",null,null,11,null,null,null,0]
[120,"Сормовский",null,null,11,null,null,null,0]
[121,"Сормовский",null,null,11,null,null,null,0]
[122,"Сормовский",null,null,11,null,null,null,0]
[123,"Сормовский",null,null,11,null,null,null,0]
[124,"Сормовский",null,null,11,null,null,null,0]
[125,"Сормовский",null,null,11,null,null,null,0]
[126,"Сормовский",null,null,11,null,null,null,0]
[127,"Сормовский",null,null,11,null,null,null,0]
[128,"Сормовский",null,null,11,null,null,null,0]
[129,"Сормовский",null,null,11,null,null,null,{"$f":"H133*100/макс11","v":0}]
[130,"Сормовский",null,null,11,null,null,null,0]
[131,"Сормовский",null,null,11,null,null,null,0]
[132,"Сормовский",null,null,11,null,null,null,0]
[133,"Сормовский",null,null,11,null,null,null,0]
[134,"Сормовский",null,null,11,null,null,null,0]
[135,"Сормовский",null,null,11,null,null,null,0]
[136,"Сормовский",null,null,11,null,null,null,0]
[137,"Сормовский",null,null,11,null,null,null,0]
[138,"Сормовский",null,null,11,null,null,null,0]
[139,"Сормовский",null,null,11,null,null,null,0]
[140,"Сормовский",null,null,11,null,null,null,0]
[141,"Сормовский",null,null,11,null,null,null,0]
[142,"Сормовский",null,null,11,null,null,null,0]
[143,"Сормовский",null,null,11,null,null,null,0]
[144,"Сормовский",null,null,11,null,null,null,0]
[145,"Сормовский",null,null,11,null,null,null,0]
[146,"Сормовский",null,null,11,null,null,null,0]
[147,"Сормовский",null,null,11,null,null,null,0]
[148,"Сормовский",null,null,11,null,null,null,0]
[149,"Сормовский",null,null,11,null,null,null,0]
[150,"Сормовский",null,null,11,null,null,null,0]
[151,"Сормовский",null,null,11,null,null,null,0]
[152,"Сормовский",null,null,11,null,null,null,0]
[153,"Сормовский",null,null,11,null,null,null,0]
[154,"Сормовский",null,null,11,null,null,null,0]
[155,"Сормовский",null,null,11,null,null,null,0]
[156,"Сормовский",null,null,11,null,null,null,0]
[157,"Сормовский",null,null,11,null,null,null,0]
[158,"Сормовский",null,null,11,null,null,null,0]
[159,"Сормовский",null,null,11,null,null,null,0]
[160,"Сормовский",null,null,11,null,null,null,0]
[161,"Сормовский",null,null,11,null,null,null,{"$f":"H165*100/макс11","v":0}]
[162,"Сормовский",null,null,11,null,null,null,0]
[163,"Сормовский",null,null,11,null,null,null,0]
[164,"Сормовский",null,null,11,null,null,null,0]
[165,"Сормовский",null,null,11,null,null,null,0]
[166,"Сормовский",null,null,11,null,null,null,0]
[167,"Сормовский",null,null,11,null,null,null,0]
[168,"Сормовский",null,null,11,null,null,null,0]
[169,"Сормовский",null,null,11,null,null,null,0]
[170,"Сормовский",null,null,11,null,null,null,0]
[171,"Сормовский",null,null,11,null,null,null,0]
[172,"Сормовский",null,null,11,null,null,null,0]
[173,"Сормовский",null,null,11,null,null,null,0]
[174,"Сормовский",null,null,11,null,null,null,0]
[175,"Сормовский",null,null,11,null,null,null,0]
[176,"Сормовский",null,null,11,null,null,null,0]
[177,"Сормовский",null,null,11,null,null,null,0]
[178,"Сормовский",null,null,11,null,null,null,0]
[179,"Сормовский",null,null,11,null,null,null,0]
[180,"Сормовский",null,null,11,null,null,null,0]
[181,"Сормовский",null,null,11,null,null,null,0]
[182,"Сормовский",null,null,11,null,null,null,0]